bitfinex/quotes_ETHUSD_20250711
["timestamp","ask_amount","ask_price","bid_price","bid_amount"]
[1752194188954,0.762,2930.9,2929.8,0.46404456]
[1752194189151,0.4367,2930.8,2929.8,0.46404456]
[1752194189364,0.762,2930.7,2929.8,0.46404456]
[1752194189845,0.762,2930.7,2929.9,0.55]
[1752194190684,0.4367,2930.6,2929.5,0.002]
[1752194190852,0.4367,2930.6,2929.7,10.55]
[1752194191052,0.4367,2930.6,2929.7,13.1567]
[1752194191988,0.4367,2930.6,2929.7,10.55]
[1752194192146,0.7965,2930.5,2929.7,10.55]
[1752194192345,3.0,2930.4,2929.7,0.55]
[1752194192647,1.1907,2930.3,2929.5,0.002]
[1752194192856,0.83,2930.2,2929.5,0.002]
[1752194193153,5.9507,2930.2,2929.5,0.002]
[1752194193478,1.2667,2930.1,2929.5,0.002]
[1752194193656,0.763,2930.0,2929.5,0.002]
[1752194193857,0.4367,2930.0,2929.5,0.002]
[1752194194183,1.1997,2929.9,2929.5,0.002]
[1752194194681,0.4367,2929.8,2929.5,0.002]
[1752194195176,0.8,2929.6,2929.5,0.002]
[1752194195550,1.2367,2929.6,2929.5,0.002]
[1752194195976,2.3467,2929.6,2929.5,0.002]
[1752194197482,3.5467,2929.6,2929.5,0.002]
[1752194197680,6.96013528,2929.6,2929.5,0.002]
[1752194198350,3.5467,2929.6,2929.5,0.002]
[1752194198547,8.07013528,2929.6,2929.5,0.002]
[1752194199154,13.58513528,2929.6,2929.5,0.002]
[1752194199853,13.58513528,2929.6,2928.8,0.002]
[1752194199854,9.3717,2929.6,2928.8,0.002]
[1752194200051,0.8146,2929.2,2928.8,0.002]
[1752194200372,0.8146,2929.1,2928.8,0.002]
[1752194200571,0.7571,2928.9,2928.8,0.002]
[1752194200983,2.3038,2928.9,2928.8,0.002]
[1752194202571,1.8671,2928.9,2928.8,0.002]
[1752194203052,1.11,2928.9,2928.8,0.1724]
[1752194203263,2.22,2928.9,2928.8,0.6421]
[1752194204092,2.22,2928.9,2928.8,0.1724]
[1752194204453,2.22,2928.9,2928.8,0.002]
[1752194204955,8.5213,2928.9,2928.8,0.002]
[1752194205151,8.958,2928.9,2928.8,0.002]
[1752194205452,12.37225108,2928.9,2928.8,0.002]
[1752194205653,10.068,2928.9,2928.8,0.002]
[1752194208070,11.178,2928.9,2928.8,0.002]
[1752194208958,5.2263,2928.9,2928.8,0.002]
[1752194209156,10.7403,2928.9,2928.8,0.002]
[1752194209573,11.177,2928.9,2928.8,0.002]
[1752194209984,15.897,2928.9,2928.8,0.002]
[1752194210569,17.007,2928.9,2928.8,0.002]
[1752194212834,11.493,2928.9,2928.8,0.002]
[1752194213047,21.09355108,2928.9,2928.8,0.002]
[1752194213338,21.55205108,2928.9,2928.8,0.002]
[1752194213684,40.29305108,2928.9,2928.8,0.002]
[1752194213925,40.29305108,2928.9,2928.5,0.002]
[1752194213926,4.18990083,2928.6,2928.5,0.002]
[1752194214084,20.25290083,2928.6,2928.5,0.002]
[1752194214279,14.64840083,2928.6,2928.5,0.002]
[1752194214511,1.2338,2928.6,2928.5,0.002]
[1752194214719,0.7753,2928.6,2928.5,0.002]
[1752194214921,6.2883,2928.6,2928.5,0.002]
[1752194215084,0.9457,2928.6,2928.5,0.002]
[1752194215288,7.5687,2928.6,2928.5,0.002]
[1752194215513,1.8853,2928.6,2928.5,0.002]
[1752194215720,7.3983,2928.6,2928.5,0.002]
[1752194215918,11.27140083,2928.6,2928.5,0.002]
[1752194217019,7.8568,2928.6,2928.5,0.002]
[1752194217186,2.3438,2928.6,2928.5,0.002]
[1752194217383,7.8568,2928.6,2928.5,0.002]
[1752194217623,7.3973,2928.6,2928.5,0.002]
[1752194217840,8.5073,2928.6,2928.5,0.002]
[1752194219196,13.6858,2928.6,2928.5,0.002]
[1752194219704,7.7153,2928.6,2928.5,0.002]
[1752194220314,14.3373,2928.6,2928.5,0.002]
[1752194220919,8.05,2928.6,2928.5,0.002]
[1752194221084,13.562,2928.6,2928.5,0.002]
[1752194221995,8.05,2928.6,2928.5,0.002]
[1752194222222,13.562,2928.6,2928.5,0.002]
[1752194222419,8.05,2928.6,2928.5,0.002]
[1752194222593,14.671,2928.6,2928.5,0.002]
[1752194223098,15.891,2928.6,2928.5,0.002]
[1752194223903,19.30560083,2928.6,2928.5,0.002]
[1752194224220,15.891,2928.6,2928.5,0.002]
[1752194224519,19.30560083,2928.6,2928.5,0.002]
[1752194225017,9.85560083,2928.6,2928.5,0.002]
[1752194225219,15.99827296,2928.6,2928.5,0.002]
[1752194225987,13.52417213,2928.6,2928.5,0.002]
[1752194226707,13.52446556,2928.6,2928.5,0.002]
[1752194226909,7.7015,2928.6,2928.5,0.002]
[1752194227112,13.2115,2928.6,2928.5,0.002]
[1752194227512,14.3215,2928.6,2928.5,0.002]
[1752194229011,8.839,2928.6,2928.5,0.002]
[1752194229725,3.33,2928.6,2928.5,0.4404]
[1752194230029,4.44,2928.6,2928.5,0.4404]
[1752194230391,9.949,2928.6,2928.5,1.2011]
[1752194230796,4.44,2928.6,2928.5,1.2011]
[1752194231198,4.44,2928.6,2928.5,15.33621743]
[1752194231199,3.965,2928.6,2928.5,15.33621743]
[1752194231401,3.965,2928.6,2928.5,17.64772867]
[1752194232101,0.625,2928.9,2928.6,10.55]
[1752194232301,0.625,2928.9,2928.7,0.4384]
[1752194232518,0.625,2928.9,2928.8,0.4384]
[1752194233031,0.625,2928.9,2928.8,1.53724]
[1752194233231,0.625,2928.9,2928.8,0.4384]
[1752194234027,0.625,2928.9,2928.8,11.8093]
[1752194234227,0.625,2928.9,2928.8,1.8093]
[1752194234528,0.625,2928.9,2928.8,15.25781132]
[1752194234711,0.625,2928.9,2928.8,17.09089812]
[1752194234910,1.735,2928.9,2928.8,17.09089812]
[1752194235826,1.18061789,2928.9,2928.8,17.09089812]
[1752194236034,0.77123959,2928.9,2928.8,17.09089812]
[1752194237027,0.001,2929.5,2929.0,0.828]
[1752194237201,0.001,2929.5,2929.2,0.55]
[1752194237396,1.111,2929.5,2929.2,0.55]
[1752194237633,1.111,2929.5,2929.3,0.4384]
[1752194237826,1.111,2929.5,2929.4,0.4384]
[1752194239105,4.111,2929.5,2929.0,0.828]
[1752194239531,4.111,2929.5,2929.1,0.4384]
[1752194239736,5.221,2929.5,2929.1,0.4384]
[1752194240540,5.6937,2929.5,2929.0,0.828]
[1752194240727,5.6937,2929.5,2928.8,0.4493]
[1752194240928,5.221,2929.5,2928.8,0.4493]
[1752194241127,5.503,2929.4,2928.8,0.4493]
[1752194241439,5.503,2929.4,2929.0,0.1704]
[1752194241603,5.9757,2929.4,2929.0,0.1704]
[1752194241803,0.1704,2929.1,2928.6,0.1704]
[1752194242002,0.1704,2928.9,2928.5,0.002]
[1752194242438,0.4727,2928.8,2928.5,0.002]
[1752194242635,0.8301,2928.7,2928.5,0.002]
[1752194242810,1.0005,2928.7,2928.5,0.002]
[1752194243536,1.11,2929.4,2928.7,10.8049]
[1752194243737,1.11,2929.4,2929.0,0.1704]
[1752194243937,1.11,2929.4,2928.8,1.48390901]
[1752194243938,1.11,2929.4,2929.1,0.4493]
[1752194244138,1.11,2929.4,2929.3,0.1704]
[1752194244435,2.22,2929.4,2929.3,0.1704]
[1752194247009,3.33,2929.4,2929.3,0.1704]
[1752194247417,3.33,2929.4,2929.3,1.4344]
[1752194248206,3.33,2929.4,2929.3,0.1704]
[1752194249236,3.8027,2929.4,2929.3,0.1704]
[1752194249424,3.8027,2929.4,2929.0,0.1704]
[1752194249425,5.7408,2929.4,2929.0,0.1704]
[1752194249624,0.4727,2929.3,2928.8,0.1704]
[1752194249830,5.6694,2929.2,2928.8,0.1704]
[1752194250147,6.1421,2929.2,2928.8,0.1704]
[1752194250523,0.4727,2929.1,2928.8,0.1704]
[1752194250944,5.6694,2929.2,2928.8,0.1704]
[1752194251342,5.6694,2929.2,2928.9,0.4493]
[1752194251529,5.499,2929.2,2929.1,0.1704]
[1752194251731,9.938,2929.4,2929.1,0.1704]
[1752194251927,1.11,2929.2,2929.1,0.4493]
[1752194252126,1.11,2929.2,2928.9,12.15451724]
[1752194252339,1.11,2929.2,2929.1,0.1704]
[1752194253562,1.11,2929.2,2929.1,2.44732172]
[1752194254156,1.11,2929.2,2929.1,12.44732172]
[1752194254356,2.22,2929.2,2929.1,15.86133967]
[1752194255257,2.22,2929.2,2929.1,2.44732172]
[1752194255428,2.22,2929.2,2929.1,10.6197]
[1752194256735,3.33,2929.2,2929.1,10.6197]
[1752194256955,3.33,2929.2,2929.1,10.93785537]
[1752194257324,3.33,2929.2,2929.1,0.48855537]
[1752194258365,9.2987,2929.2,2929.1,0.31815537]
[1752194258536,10.129,2929.2,2929.1,0.31815537]
[1752194259236,11.239,2929.2,2929.1,0.31815537]
[1752194260031,14.139,2929.2,2929.1,0.31815537]
[1752194261624,18.6629014,2929.2,2929.1,0.31815537]
[1752194261953,15.249,2929.2,2929.1,0.31815537]
[1752194262163,15.247,2929.2,2929.1,0.31815537]
[1752194262524,8.45,2929.2,2929.1,0.31815537]
[1752194263147,8.45,2929.2,2929.1,0.76745537]
[1752194263454,8.45,2929.2,2929.1,15.67457332]
[1752194263754,3.81017391,2929.2,2929.1,17.58704892]
[1752194264056,4.92017391,2929.2,2929.1,17.58704892]
[1752194265254,4.92017391,2929.2,2929.1,17.26889355]
[1752194266553,6.03017391,2929.2,2929.1,17.26889355]
[1752194268037,6.03017391,2929.2,2929.1,13.8548756]
[1752194268235,6.03017391,2929.2,2929.1,10.9431]
[1752194268438,6.03017391,2929.2,2929.1,14.80641795]
[1752194268628,6.03017391,2929.2,2929.1,15.35641795]
[1752194268824,7.14017391,2929.2,2929.1,15.35641795]
[1752194270153,7.14017391,2929.2,2929.1,20.84741795]
[1752194270358,7.14017391,2929.2,2929.1,23.57900009]
[1752194270873,2.26068265,2929.2,2929.1,25.62900009]
[1752194271068,2.26068265,2929.2,2929.1,26.63126099]
[1752194271276,4.44,2929.4,2929.3,4.72018486]
[1752194271474,4.44,2929.4,2929.3,20.78823852]
[1752194271632,4.44,2929.4,2929.3,24.80463788]
[1752194273075,4.44,2929.4,2929.3,27.85689878]
[1752194273238,3.66403585,2929.4,2929.3,27.85689878]
[1752194273572,3.1097854,2929.4,2929.3,27.85689878]
[1752194273731,2.70049157,2929.4,2929.3,21.78884512]
[1752194273935,3.81049157,2929.4,2929.3,21.78884512]
[1752194274157,3.81049157,2929.4,2929.3,18.73658422]
[1752194274358,2.68790168,2929.4,2929.3,27.27784512]
[1752194274544,2.221,2929.5,2929.4,14.75526832]
[1752194274746,2.221,2929.5,2929.4,18.60126768]
[1752194276256,2.22,2929.6,2929.5,14.7849518]
[1752194276470,2.22,2929.6,2929.5,26.34000546]
[1752194276674,2.22,2929.6,2929.5,26.94570546]
[1752194276842,1.5609375,2929.6,2929.5,26.94570546]
[1752194277041,1.5609375,2929.6,2929.5,30.35640482]
[1752194277238,0.92680663,2929.6,2929.5,30.35640482]
[1752194277440,12.70868393,2932.0,2929.5,30.35640482]
[1752194277441,1.11,2932.0,2930.3,2.6]
[1752194277660,1.11,2932.0,2931.3,13.96145566]
[1752194277970,1.11,2932.0,2931.3,13.6991093]
[1752194278157,1.5794,2932.0,2931.3,16.787]
[1752194278667,1.5794,2932.0,2931.3,16.036]
[1752194278873,3.4639,2931.4,2931.3,10.0]
[1752194279074,3.4639,2931.4,2930.6,5.485]
[1752194279251,0.81579,2931.3,2930.6,5.485]
[1752194279446,0.4694,2931.2,2930.6,5.485]
[1752194279642,0.7745,2931.1,2930.7,10.0]
[1752194279846,0.4694,2931.0,2930.7,10.0]
[1752194280141,0.4694,2930.9,2930.7,10.0]
[1752194281345,0.4694,2930.8,2930.7,10.0]
[1752194281754,0.4694,2930.8,2930.6,5.485]
[1752194281960,0.4694,2930.8,2930.7,10.0]
[1752194282459,1.2439,2930.8,2929.6,0.4353]
[1752194282660,0.23539,2930.7,2929.8,0.55]
[1752194282864,0.23539,2930.7,2929.9,6.034]
[1752194283067,0.23539,2930.7,2930.0,10.0]
[1752194283256,0.23539,2930.7,2929.9,6.034]
[1752194283257,0.23539,2930.7,2930.2,10.0]
[1752194283449,0.23539,2930.7,2930.3,5.484]
[1752194283648,0.70479,2930.7,2930.3,5.484]
[1752194283848,1.81479,2930.7,2930.3,5.484]
[1752194284146,1.34539,2930.7,2930.4,10.0]
[1752194284349,1.11,2930.7,2930.6,10.0]
[1752194284546,1.11,2930.7,2930.6,10.967]
[1752194285089,1.11,2930.7,2930.5,0.4353]
[1752194285090,1.11,2930.7,2930.5,10.55]
[1752194286261,2.22,2930.7,2930.5,10.55]
[1752194287658,2.22,2930.7,2930.6,25.53297052]
[1752194288779,3.33,2930.7,2930.6,25.53297052]
[1752194289701,3.33,2930.7,2930.6,21.6854]
[1752194289883,3.33,2930.7,2930.6,10.1704]
[1752194290179,3.7994,2930.7,2929.7,0.7658]
[1752194290362,0.41251,2930.6,2930.3,0.1704]
[1752194290564,0.4694,2930.5,2930.3,10.1704]
[1752194291278,1.5794,2930.5,2930.3,10.1704]
[1752194293178,1.11,2930.5,2930.3,0.1704]
[1752194293497,0.947,2930.3,2929.7,0.1704]
[1752194293698,0.7766,2929.8,2929.4,0.1704]
[1752194293902,0.7766,2930.1,2929.4,0.9853]
[1752194294199,0.7766,2929.9,2929.2,5.48]
[1752194294388,0.7766,2929.7,2929.4,0.1704]
[1752194294564,0.4694,2929.6,2929.4,0.1704]
[1752194294966,0.4694,2929.5,2929.4,0.1704]
[1752194295293,0.4694,2929.5,2929.0,10.002]
[1752194295294,0.4694,2929.5,2929.0,0.002]
[1752194295493,0.4694,2929.5,2929.3,0.1704]
[1752194295683,0.4694,2929.4,2929.3,0.1704]
[1752194296278,1.5794,2929.4,2929.3,0.1704]
[1752194296973,2.358,2929.4,2929.0,0.002]
[1752194297173,0.7052,2929.3,2929.0,0.002]
[1752194297387,0.7786,2929.1,2929.0,0.002]
[1752194298079,1.248,2929.1,2929.0,0.002]
[1752194298471,5.258,2929.1,2929.0,0.002]
[1752194299086,10.737,2929.1,2929.0,0.002]
[1752194300696,10.738,2929.1,2929.0,0.002]
[1752194300901,4.01,2929.1,2929.0,0.002]
[1752194301106,5.12,2929.1,2929.0,0.002]
[1752194303389,6.23,2929.1,2929.0,0.002]
[1752194305111,3.33,2929.1,2929.0,0.002]
[1752194305911,4.44,2929.1,2929.0,0.002]
[1752194308316,5.55,2929.1,2929.0,0.002]
[1752194308807,6.45,2929.1,2929.0,0.002]
[1752194309990,6.45,2929.1,2929.0,0.9999]
[1752194310195,6.45,2929.1,2929.0,1.44152247]
[1752194310806,6.66,2929.1,2929.0,1.44152247]
[1752194311097,6.66,2929.1,2929.0,11.61192247]
[1752194311292,6.66,2929.1,2929.0,5.02605698]
[1752194311493,6.66,2929.1,2929.0,5.85115698]
[1752194311696,6.66,2929.1,2929.0,11.43912247]
[1752194311997,6.66,2929.1,2929.0,10.1724]
[1752194312593,7.1232,2929.1,2929.0,10.002]
[1752194313087,7.77,2929.1,2929.0,10.002]
[1752194313495,8.2332,2929.1,2929.0,10.002]
[1752194313899,9.224,2929.1,2929.0,0.002]
[1752194314740,12.63801795,2929.1,2929.0,0.002]
[1752194314888,9.224,2929.1,2929.0,0.002]
[1752194315687,10.334,2929.1,2929.0,0.002]
[1752194315888,13.74801795,2929.1,2929.0,0.002]
[1752194316426,14.21783451,2929.0,2928.9,0.002]
[1752194316595,6.7429,2929.0,2928.9,0.002]
[1752194316918,10.15703451,2929.0,2928.9,0.002]
[1752194317927,6.7429,2929.0,2928.9,0.002]
[1752194318097,7.8529,2929.0,2928.9,0.002]
[1752194318447,2.3769,2929.0,2928.9,0.002]
[1752194318590,8.0233,2929.0,2928.9,0.002]
[1752194320738,9.1333,2929.0,2928.9,0.002]
[1752194322323,12.54743451,2929.0,2928.9,0.002]
[1752194322699,9.1323,2929.0,2928.9,0.002]
[1752194323207,10.2423,2929.0,2928.9,0.002]
[1752194325357,4.7673,2929.0,2928.9,0.002]
[1752194325557,14.76643451,2929.0,2928.9,0.002]
[1752194326242,15.02312723,2929.0,2928.9,0.002]
[1752194327028,29.16312723,2929.0,2928.9,0.002]
[1752194327234,29.16312723,2929.0,2928.9,1e-08]
[1752194327653,3.41460083,2928.6,2928.5,0.002]
[1752194327852,3.4151839,2928.1,2928.0,0.002]
[1752194328164,9.6599839,2928.1,2928.0,0.002]
[1752194328364,10.1231839,2928.1,2928.0,0.002]
[1752194330435,11.2331839,2928.1,2928.0,0.002]
[1752194330636,11.81853045,2928.1,2928.0,0.002]
[1752194330859,8.40334655,2928.1,2928.0,0.002]
[1752194331068,6.34453045,2928.1,2928.0,0.002]
[1752194331244,11.81853045,2928.1,2928.0,0.002]
[1752194333179,7.45453045,2928.1,2928.0,0.002]
[1752194333364,4.03934655,2928.1,2928.0,0.002]
[1752194333531,9.51334655,2928.1,2928.0,0.002]
[1752194333961,12.92853045,2928.1,2928.0,0.002]
[1752194334360,9.51334655,2928.1,2928.0,0.002]
[1752194334860,12.92853045,2928.1,2928.0,0.002]
[1752194335640,10.62234655,2928.1,2928.0,0.002]
[1752194335837,5.14934655,2928.1,2928.0,0.002]
[1752194336062,10.62234655,2928.1,2928.0,0.002]
[1752194336382,14.03753045,2928.1,2928.0,0.002]
[1752194337301,8.56943045,2928.1,2928.0,0.002]
[1752194337436,14.04243045,2928.1,2928.0,0.002]
[1752194338074,15.15243045,2928.1,2928.0,0.002]
[1752194338275,5.79614655,2928.1,2928.0,0.002]
[1752194338491,10.6828,2928.1,2928.0,0.002]
[1752194338637,11.1509,2928.1,2928.0,0.002]
[1752194338836,14.5660839,2928.1,2928.0,0.002]
[1752194339171,11.1509,2928.1,2928.0,0.002]
[1752194339338,5.2108,2928.1,2928.0,0.002]
[1752194339537,4.44,2928.1,2928.0,0.4378]
[1752194339749,9.912,2928.1,2928.0,1.56151]
[1752194340049,4.44,2928.1,2928.0,1.56151]
[1752194340247,9.912,2928.1,2928.0,0.4378]
[1752194340448,11.022,2928.1,2928.0,0.4378]
[1752194341458,5.55,2929.0,2928.1,0.7912]
[1752194341774,5.551,2929.0,2928.5,3.41464036]
[1752194341986,5.551,2929.0,2928.6,5.39609286]
[1752194342138,5.551,2929.0,2928.9,14.75545108]
[1752194342343,5.551,2929.0,2928.9,12.22270554]
[1752194342549,5.551,2929.0,2928.9,11.227]
[1752194343252,6.661,2929.0,2928.9,11.227]
[1752194345790,7.771,2929.0,2928.9,11.227]
[1752194348172,8.881,2929.0,2928.9,11.227]
[1752194348374,8.881,2929.0,2928.9,12.69113609]
[1752194349398,8.881,2929.0,2928.9,16.10538717]
[1752194349690,8.881,2929.0,2928.9,12.86153609]
[1752194350564,9.991,2929.0,2928.9,12.86153609]
[1752194351216,9.991,2929.0,2928.9,16.27578717]
[1752194351374,9.991,2929.0,2928.9,27.21178717]
[1752194351575,9.991,2929.0,2928.9,23.79753609]
[1752194352383,9.991,2929.0,2928.9,27.21178717]
[1752194352578,9.991,2929.0,2928.9,27.76178717]
[1752194352897,9.991,2929.0,2928.9,35.80947653]
[1752194353226,11.101,2929.0,2928.9,27.76178717]
[1752194355476,12.211,2929.0,2928.9,36.36451155]
[1752194355785,2.36685117,2929.0,2928.9,37.02855042]
[1752194355986,1e-08,2929.0,2928.9,37.02855042]
[1752194356388,1e-08,2929.0,2928.9,39.07455042]
[1752194357616,1e-08,2929.0,2928.9,37.02855042]
[1752194357828,1.11000001,2929.0,2928.9,25.5375154]
[1752194358127,1.11000001,2929.0,2928.9,31.0025154]
[1752194358813,1.11000001,2929.0,2928.9,13.41153609]
[1752194358999,1.11000001,2929.0,2928.9,16.27578717]
[1752194359200,1.11000001,2929.0,2928.9,20.27565108]
[1752194359401,1.11000001,2929.0,2928.9,20.82565108]
[1752194359724,1.11000001,2929.0,2928.9,20.27565108]
[1752194359910,1.11000001,2929.0,2928.9,20.82565108]
[1752194360083,1.11000001,2929.0,2928.9,28.87334044]
[1752194360285,2.22000001,2929.0,2928.9,32.2840398]
[1752194360499,2.22000001,2929.0,2928.9,32.83907482]
[1752194360896,2.22000001,2929.0,2928.9,24.23635044]
[1752194362381,2.22000001,2929.0,2928.9,24.23535044]
[1752194362585,3.33000001,2929.0,2928.9,24.23535044]
[1752194363640,3.33000001,2929.0,2928.9,24.23635044]
[1752194363788,3.33100001,2929.0,2928.9,24.23635044]
[1752194364611,3.33100001,2929.0,2928.9,25.88476994]
[1752194365302,4.44100001,2929.0,2928.9,20.42276994]
[1752194365507,4.44100001,2929.0,2928.9,25.88476994]
[1752194366030,4.44100001,2929.0,2928.9,34.48749432]
[1752194366320,4.44100001,2929.0,2928.9,36.53349432]
[1752194366789,4.44100001,2929.0,2928.9,35.9784593]
[1752194367441,4.44100001,2929.0,2928.9,22.46951886]
[1752194367723,5.55100001,2929.0,2928.9,25.88376994]
[1752194367910,5.55100001,2929.0,2928.9,22.46951886]
[1752194368117,5.55100001,2929.0,2928.9,19.0588195]
[1752194368320,5.55100001,2929.0,2928.9,11.8208195]
[1752194368731,6.00150001,2929.0,2928.9,11.8208195]
[1752194368904,5.55100001,2929.0,2928.9,17.2808195]
[1752194369235,5.55100001,2929.0,2928.9,11.8208195]
[1752194369531,6.00150001,2929.0,2928.9,1.8208195]
[1752194369702,6.00150001,2929.0,2928.9,11.8208195]
[1752194370097,7.11150001,2929.0,2928.9,11.8208195]
[1752194370330,12.57150001,2929.0,2928.9,1.8208195]
[1752194370635,13.33850001,2929.0,2928.9,1.8208195]
[1752194371542,12.88800001,2929.0,2928.9,1.8208195]
[1752194371711,6.66100001,2929.0,2928.9,1.8208195]
[1752194372460,13.23100001,2929.0,2928.9,1.8208195]
[1752194372595,7.77100001,2929.0,2928.9,15.78507058]
[1752194372800,7.77100001,2929.0,2928.9,21.70696994]
[1752194373027,7.77100001,2929.0,2928.9,23.07920496]
[1752194373230,7.77100001,2929.0,2928.9,23.50713714]
[1752194374451,7.77100001,2929.0,2928.9,22.95210212]
[1752194374611,7.77100001,2929.0,2928.9,26.00455617]
[1752194374817,8.88100001,2929.0,2928.9,22.95210212]
[1752194375228,1.11,2929.4,2929.0,0.55]
[1752194375452,1.11,2929.4,2929.3,24.82827422]
[1752194375626,1.11,2929.4,2929.3,30.45667422]
[1752194375832,1.11,2929.4,2929.3,30.92187422]
[1752194376015,1.11,2929.4,2929.3,11.4912]
[1752194376224,1.11,2929.4,2929.3,15.6284]
[1752194377139,2.22,2929.4,2929.3,15.6284]
[1752194377343,2.22,2929.4,2929.3,16.1784]
[1752194377522,2.22,2929.4,2929.3,16.6436]
[1752194377723,2.22,2929.4,2929.3,22.57164268]
[1752194377951,2.22,2929.4,2929.3,25.41324268]
[1752194378164,1.665663,2929.4,2929.3,17.35420766]
[1752194378327,1.665663,2929.4,2929.3,16.88900766]
[1752194378526,1.665663,2929.4,2929.3,22.34600766]
[1752194379044,1.665663,2929.4,2929.3,17.58015107]
[1752194379344,1.665663,2929.4,2929.3,15.62092827]
[1752194379543,2.775663,2929.4,2929.3,15.62092827]
[1752194381931,3.885663,2929.4,2929.3,15.62092827]
[1752194382492,3.885663,2929.4,2929.3,16.17092827]
[1752194382680,3.885663,2929.4,2929.3,9.99352827]
[1752194382836,3.885663,2929.4,2928.9,1.6504195]
[1752194382837,5.5028293,2929.4,2928.9,1.6504195]
[1752194383170,0.4505,2929.3,2928.9,1.6504195]
[1752194383371,5.0523293,2929.4,2928.9,1.6504195]
[1752194383534,0.4505,2929.2,2928.9,1.6504195]
[1752194383760,3.885663,2929.4,2929.1,3.96398761]
[1752194383978,3.885663,2929.4,2929.3,10.55]
[1752194384456,4.995663,2929.4,2929.3,10.55]
[1752194384635,4.995663,2929.4,2929.3,13.96378486]
[1752194384843,4.995663,2929.4,2929.3,16.71226407]
[1752194385038,4.996663,2929.4,2929.3,16.71226407]
[1752194385566,4.996663,2929.4,2929.3,12.83327921]
[1752194385747,4.996663,2929.4,2929.3,16.24706407]
[1752194385933,4.996663,2929.4,2929.3,12.83327921]
[1752194387070,6.106663,2929.4,2929.3,12.83327921]
[1752194388860,6.106663,2929.4,2929.3,17.48156407]
[1752194389030,6.106663,2929.4,2929.3,20.08259909]
[1752194389353,5.55234443,2929.4,2929.3,20.51047837]
[1752194389534,6.66234443,2929.4,2929.3,20.51047837]
[1752194391743,7.77234443,2929.4,2929.3,20.51047837]
[1752194392369,0.001,2930.2,2930.1,13.9628528]
[1752194392546,0.001,2930.2,2930.1,21.23184582]
[1752194392746,0.001,2930.2,2930.1,21.84534582]
[1752194394381,1.111,2930.2,2930.1,21.84534582]
[1752194395774,1.111,2930.2,2930.1,32.72883518]
[1752194396138,0.001,2930.3,2930.2,13.96273633]
[1752194396371,0.001,2930.3,2930.2,17.81653569]
[1752194396835,1.111,2930.3,2930.2,17.81653569]
[1752194397233,1.111,2930.3,2930.2,13.96069936]
[1752194397462,1.111,2930.3,2930.2,22.82343569]
[1752194397781,1.111,2930.3,2930.2,23.26653569]
[1752194399233,2.221,2930.3,2930.2,23.26653569]
[1752194400441,2.221,2930.3,2930.2,0.55]
[1752194400640,2.221,2930.3,2930.2,9.41073633]
[1752194401842,3.331,2930.3,2930.2,9.41073633]
[1752194402747,3.331,2930.3,2930.2,9.85383633]
[1752194403083,3.331,2930.3,2930.2,3.96273633]
[1752194403267,3.331,2930.3,2930.2,9.40973633]
[1752194403480,3.8861,2930.3,2930.1,0.1704]
[1752194403773,0.8044,2930.1,2929.8,5.447]
[1752194403974,1.2508,2930.1,2929.8,5.447]
[1752194404275,2.3608,2930.1,2929.8,5.447]
[1752194404476,2.3608,2930.1,2929.9,10.0]
[1752194404669,2.3608,2930.1,2929.7,13.96328289]
[1752194404906,2.3608,2930.1,2929.9,10.0]
[1752194405102,2.3608,2930.1,2929.9,5.447]
[1752194405465,1.9144,2930.1,2930.0,10.0]
[1752194405692,2.3608,2930.1,2930.0,10.0]
[1752194406399,2.3608,2930.1,2929.9,10.0]
[1752194406562,3.4708,2930.1,2929.9,10.0]
[1752194407194,0.4464,2930.0,2929.3,0.002]
[1752194407398,0.7503,2929.9,2929.3,5.448]
[1752194407691,0.4464,2929.8,2929.4,5.446]
[1752194407890,0.4464,2929.7,2929.5,10.0]
[1752194408096,0.4464,2929.6,2929.4,5.446]
[1752194408282,0.4464,2929.6,2929.5,10.0]
[1752194408597,0.5551,2929.8,2929.4,10.0]
[1752194408965,0.4464,2929.7,2929.4,10.0]
[1752194409160,0.4464,2929.6,2929.4,5.445]
[1752194409573,0.4464,2929.5,2929.4,5.445]
[1752194409773,1.6651,2929.8,2929.4,5.445]
[1752194409991,1.11,2929.8,2929.4,15.445]
[1752194410210,1.11,2929.8,2929.4,15.8881]
[1752194410368,1.11,2929.8,2929.4,15.445]
[1752194411403,2.22,2929.8,2929.4,15.445]
[1752194411977,0.2668,2929.7,2929.4,15.445]
[1752194412176,0.2668,2929.7,2929.4,10.0]
[1752194412479,0.2668,2929.7,2929.4,15.445]
[1752194412879,2.22,2929.8,2929.4,15.445]
[1752194413574,2.22,2929.8,2929.7,0.1704]
[1752194413906,3.33,2929.8,2929.7,0.1704]
[1752194414509,3.33,2929.8,2929.7,15.994]
[1752194414800,3.5968,2929.8,2929.7,10.0]
[1752194415176,3.33,2929.8,2929.7,10.0]
[1752194416010,4.3621,2929.8,2929.7,10.0]
[1752194416216,5.4721,2929.8,2929.7,10.0]
[1752194416414,5.2053,2929.8,2929.7,10.0]
[1752194416781,4.44,2929.8,2929.7,10.0]
[1752194418612,5.55,2929.8,2929.7,10.0]
[1752194421021,6.9268,2929.8,2929.4,5.442]